[Event "Schack-SM 2022: Junior-SM"]
[Site "Fyrishov, Idrottsgatan 2, Uppsala, Sweden"]
[Date "2022.07.03"]
[Round "2.2"]
[White "Olsson, William"]
[Black "Torngren, Gustav"]
[Result "1-0"]
[TimeControl "90 minutes for 40 moves + 30 minutes for the rest of the game + 30 seconds per move from move one."]
[WhiteTitle "FM"]
[BlackTitle "FM"]
[WhiteFideId "1741721"]
[BlackFideId "1728970"]
[WhiteElo "2284"]
[BlackElo "2273"]

1. c4 {[%clk 01:30:30]} e6 {[%clk 01:30:30]} 2. Nf3 {[%clk 01:30:30]} d5 {[%clk
01:30:30]} 3. g3 {[%clk 01:31:47]} {[%emt 25:59:56]} Nf6 {[%clk 01:15:50]}
{[%emt 00:10:54]} 4. Bg2 {[%clk 01:31:55]} {[%emt 00:00:22]} d4 {[%clk
01:15:29]} {[%emt 00:00:50]} 5. O-O {[%clk 01:29:01]} {[%emt 00:03:24]} Be7
{[%clk 01:13:07]} {[%emt 00:02:52]} 6. b4 {[%clk 01:24:14]} {[%emt 00:05:18]}
O-O {[%clk 01:13:19]} {[%emt 00:00:18]} 7. Bb2 {[%clk 01:23:56]} {[%emt
00:00:48]} c5 {[%clk 01:13:19]} {[%emt 00:00:29]} 8. Na3 {[%clk 01:14:07]}
{[%emt 00:10:20]} Nbd7 {[%clk 00:52:04]} {[%emt 00:21:44]} 9. bxc5 {[%clk
01:03:04]} {[%emt 00:11:34]} e5 {[%clk 00:52:14]} {[%emt 00:00:19]} 10. Nb5
{[%clk 01:01:08]} {[%emt 00:02:27]} Bxc5 {[%clk 00:48:57]} {[%emt 00:03:46]} 11.
e3 {[%clk 01:00:35]} {[%emt 00:01:04]} dxe3 {[%clk 00:46:29]} {[%emt 00:02:58]}
12. fxe3 {[%clk 01:00:16]} {[%emt 00:00:49]} a6 {[%clk 00:43:43]} {[%emt
00:03:15]} 13. Nc3 {[%clk 00:59:45]} {[%emt 00:01:01]} Qe7 {[%clk 00:43:35]}
{[%emt 00:00:38]} 14. d4 {[%clk 00:56:58]} {[%emt 00:03:17]} Ba7 {[%clk
00:43:44]} {[%emt 00:00:21]} 15. Kh1 {[%clk 00:54:46]} {[%emt 00:02:42]} Rd8
{[%clk 00:42:38]} {[%emt 00:01:37]} 16. Qb3 {[%clk 00:54:04]} {[%emt 00:01:13]}
Rb8 {[%clk 00:38:57]} {[%emt 00:04:10]} 17. dxe5 {[%clk 00:45:26]} {[%emt
00:09:08]} Ng4 {[%clk 00:38:53]} {[%emt 00:00:34]} 18. Nd5 {[%clk 00:45:34]}
{[%emt 00:00:22]} Qe6 {[%clk 00:38:31]} {[%emt 00:00:51]} 19. Bd4 {[%clk
00:45:26]} {[%emt 00:00:39]} Bxd4 {[%clk 00:31:57]} {[%emt 00:07:04]} 20. exd4
{[%clk 00:45:45]} {[%emt 00:00:12]} b5 {[%clk 00:32:25]} {[%emt 00:00:02]} 21.
h3 {[%clk 00:40:22]} {[%emt 00:05:52]} Nh6 {[%clk 00:21:01]} {[%emt 00:11:53]}
22. Ng5 {[%clk 00:38:46]} {[%emt 00:02:06]} Qe8 {[%clk 00:21:30]} {[%emt
00:00:02]} 23. c5 {[%clk 00:30:03]} {[%emt 00:09:13]} Bb7 {[%clk 00:13:24]}
{[%emt 00:08:36]} 24. Rae1 {[%clk 00:26:59]} {[%emt 00:03:30]} Nf8 {[%clk
00:13:16]} {[%emt 00:00:40]} 25. e6 {[%clk 00:26:53]} {[%emt 00:00:38]} fxe6
{[%clk 00:11:50]} {[%emt 00:01:55]} 26. Nxe6 {[%clk 00:27:10]} {[%emt
00:00:13]} Nxe6 {[%clk 00:10:45]} {[%emt 00:01:35]} 27. Rxe6 {[%clk 00:27:34]}
{[%emt 00:00:07]} Qh5 {[%clk 00:09:23]} {[%emt 00:01:52]} 28. Re5 {[%clk
00:27:46]} {[%emt 00:00:17]} 1-0

[Event "Schack-SM 2022: Junior-SM"]
[Site "Fyrishov, Idrottsgatan 2, Uppsala, Sweden"]
[Date "2022.07.03"]
[Round "2.4"]
[White "Soderstrom, Adrian"]
[Black "Grahn, Vidar"]
[Result "1/2-1/2"]
[TimeControl "90 minutes for 40 moves + 30 minutes for the rest of the game + 30 seconds per move from move one."]
[WhiteTitle "CM"]
[WhiteFideId "1745786"]
[BlackFideId "1744780"]
[WhiteElo "2292"]
[BlackElo "2003"]

1. d4 {[%clk 01:30:30]} d5 {[%clk 01:30:30]} 2. c4 {[%clk 01:30:30]} c6 {[%clk
01:30:30]} 3. Nf3 {[%clk 01:31:29]} {[%emt 25:55:02]} Nf6 {[%clk 01:31:52]} 4.
e3 {[%clk 01:31:47]} {[%emt 00:00:14]} Bf5 5. cxd5 {[%clk 01:30:48]} cxd5
{[%clk 01:32:45]} {[%emt 00:00:02]} 6. Nc3 {[%clk 01:31:07]} {[%emt 00:00:10]}
Nc6 {[%clk 01:33:01]} {[%emt 00:00:15]} 7. Ne5 {[%clk 01:30:31]} {[%emt
00:01:05]} Rc8 {[%clk 01:33:16]} {[%emt 00:00:15]} 8. Bb5 {[%clk 01:28:47]}
{[%emt 00:02:13]} e6 {[%clk 01:30:00]} {[%emt 00:03:47]} 9. g4 {[%clk
01:24:16]} {[%emt 00:05:02]} Bg6 {[%clk 01:28:20]} {[%emt 00:02:09]} 10. h4
{[%clk 01:21:55]} {[%emt 00:02:50]} h5 {[%clk 01:25:42]} {[%emt 00:03:09]} 11.
Nxg6 {[%clk 01:20:05]} {[%emt 00:02:20]} fxg6 {[%clk 01:26:06]} {[%emt
00:00:06]} 12. g5 {[%clk 01:20:02]} {[%emt 00:00:33]} Ng8 {[%clk 01:23:12]}
{[%emt 00:03:24]} 13. Qa4 {[%clk 01:12:51]} {[%emt 00:07:41]} a6 {[%clk
01:14:41]} {[%emt 00:09:01]} 14. Bd3 {[%clk 01:11:59]} {[%emt 00:01:21]} Nge7
{[%clk 01:13:26]} {[%emt 00:01:46]} 15. Bd2 {[%clk 01:05:38]} {[%emt 00:06:50]}
Nf5 {[%clk 01:09:21]} {[%emt 00:04:36]} 16. Rc1 {[%clk 00:55:35]} {[%emt
00:10:33]} Bb4 {[%clk 00:58:50]} {[%emt 00:11:00]} 17. a3 {[%clk 00:51:58]}
{[%emt 00:04:09]} Bxc3 {[%clk 00:58:59]} {[%emt 00:00:21]} 18. bxc3 {[%clk
00:49:55]} {[%emt 00:02:32]} O-O {[%clk 00:53:40]} {[%emt 00:05:48]} 19. c4
{[%clk 00:40:28]} {[%emt 00:09:58]} Qe7 {[%clk 00:49:23]} {[%emt 00:04:46]} 20.
Qb3 {[%clk 00:29:32]} {[%emt 00:11:26]} Qf7 {[%clk 00:44:56]} {[%emt 00:04:58]}
21. f4 {[%clk 00:26:03]} {[%emt 00:03:59]} Rce8 {[%clk 00:38:50]} {[%emt
00:06:36]} 22. Qb6 {[%clk 00:13:51]} {[%emt 00:12:43]} Kh7 {[%clk 00:29:59]}
{[%emt 00:09:20]} 23. Kd1 {[%clk 00:10:58]} {[%emt 00:03:23]} Qd7 {[%clk
00:24:13]} {[%emt 00:06:15]} 24. c5 {[%clk 00:08:59]} {[%emt 00:02:30]} Nce7
{[%clk 00:18:55]} {[%emt 00:05:47]} 25. Rb1 {[%clk 00:08:21]} {[%emt 00:01:08]}
Rb8 {[%clk 00:17:57]} {[%emt 00:01:28]} 26. Bc2 {[%clk 00:07:08]} {[%emt
00:01:44]} Ng3 {[%clk 00:16:26]} {[%emt 00:02:00]} 27. Rg1 {[%clk 00:07:05]}
{[%emt 00:00:34]} Ngf5 {[%clk 00:16:32]} {[%emt 00:00:24]} 28. Rh1 {[%clk
00:07:04]} {[%emt 00:00:32]} Ng3 {[%clk 00:16:42]} {[%emt 00:00:19]} 29. Rh3
{[%clk 00:06:00]} {[%emt 00:01:34]} Nef5 {[%clk 00:10:11]} {[%emt 00:07:01]} 30.
Ke1 {[%clk 00:04:51]} {[%emt 00:01:39]} Ne4 {[%clk 00:07:42]} {[%emt 00:02:59]}
31. Bxe4 {[%clk 00:05:09]} {[%emt 00:00:12]} dxe4 {[%clk 00:08:08]} {[%emt
00:00:03]} 32. Qb3 {[%clk 00:03:22]} {[%emt 00:02:18]} Qd5 {[%clk 00:04:47]}
{[%emt 00:03:51]} 33. Kf2 {[%clk 00:03:40]} {[%emt 00:00:12]} Ne7 {[%clk
00:04:28]} {[%emt 00:00:49]} 34. Qxd5 {[%clk 00:03:01]} {[%emt 00:01:09]} exd5
{[%clk 00:04:41]} {[%emt 00:00:17]} 35. Ba5 {[%clk 00:03:27]} {[%emt 00:00:03]}
Rfc8 {[%clk 00:04:24]} {[%emt 00:00:47]} 36. Bb6 {[%clk 00:03:57]} {[%emt
00:00:02]} Nc6 {[%clk 00:04:40]} {[%emt 00:00:13]} 37. Rh2 {[%clk 00:03:27]}
{[%emt 00:00:59]} Kg8 {[%clk 00:03:52]} {[%emt 00:01:19]} 38. Kg3 {[%emt
00:00:57]} Kf7 {[%clk 00:03:42]} 39. Rf2 {[%clk 00:03:42]} {[%emt 00:00:28]}
Ke6 {[%clk 00:03:59]} {[%emt 00:00:13]} 40. Rbf1 {[%clk 00:01:22]} {[%emt
00:02:50]} Kf5 {[%clk 00:04:05]} {[%emt 00:00:25]} 41. Kh3 {[%clk 00:30:05]}
{[%emt 00:01:46]} Ra8 {[%clk 00:34:21]} {[%emt 00:00:14]} 42. Kg3 {[%clk
00:28:11]} {[%emt 00:02:24]} Rab8 {[%clk 00:34:44]} {[%emt 00:00:07]} 43. Rg2
{[%clk 00:28:39]} {[%emt 00:00:02]} Ra8 {[%clk 00:32:23]} {[%emt 00:02:52]} 44.
Rb1 {[%clk 00:29:05]} {[%emt 00:00:03]} a5 {[%clk 00:31:28]} {[%emt 00:01:25]}
45. Rb5 {[%clk 00:25:38]} {[%emt 00:03:56]} 1/2-1/2

[Event "Schack-SM 2022: Junior-SM"]
[Site "Fyrishov, Idrottsgatan 2, Uppsala, Sweden"]
[Date "2022.07.03"]
[Round "2.5"]
[White "Falkevall, Axel"]
[Black "Seo, Jung Hyun"]
[Result "1-0"]
[TimeControl "90 minutes for 40 moves + 30 minutes for the rest of the game + 30 seconds per move from move one."]
[WhiteTitle "FM"]
[WhiteFideId "1735560"]
[BlackFideId "1735667"]
[WhiteElo "2275"]
[BlackElo "2102"]

1. e4 {[%clk 01:30:57]} {[%emt 00:00:02]} c6 {[%clk 01:30:02]} {[%emt
00:00:59]} 2. d4 {[%clk 01:31:16]} {[%emt 00:00:10]} d5 {[%clk 01:30:29]}
{[%emt 00:00:03]} 3. e5 {[%clk 01:31:34]} {[%emt 00:00:13]} Bf5 {[%clk
01:30:49]} {[%emt 00:00:09]} 4. h4 {[%clk 01:31:54]} {[%emt 00:00:09]} h5
{[%clk 01:30:22]} {[%emt 00:00:58]} 5. c4 {[%clk 01:31:37]} {[%emt 00:00:48]}
e6 {[%clk 01:30:18]} {[%emt 00:00:33]} 6. Nc3 {[%clk 01:31:26]} {[%emt
00:00:41]} Ne7 {[%clk 01:29:02]} {[%emt 00:01:46]} 7. Nge2 {[%clk 01:29:39]}
{[%emt 00:02:17]} dxc4 {[%clk 01:28:26]} {[%emt 00:01:06]} 8. Ng3 {[%clk
01:29:37]} {[%emt 00:00:33]} b5 {[%clk 01:17:17]} {[%emt 00:11:38]} 9. Bg5
{[%clk 01:13:02]} {[%emt 00:17:05]} Qd7 {[%clk 01:08:44]} {[%emt 00:09:03]} 10.
Be2 {[%clk 01:07:28]} {[%emt 00:06:03]} Na6 {[%clk 01:01:34]} {[%emt 00:07:42]}
11. O-O {[%clk 00:48:51]} {[%emt 00:19:06]} Nb4 {[%clk 00:48:23]} {[%emt
00:13:41]} 12. a4 {[%clk 00:37:34]} {[%emt 00:11:47]} Nbd5 {[%clk 00:29:07]}
{[%emt 00:19:47]} 13. Nxd5 {[%clk 00:32:37]} {[%emt 00:05:27]} exd5 {[%clk
00:20:33]} {[%emt 00:09:04]} 14. Nxf5 {[%clk 00:29:53]} {[%emt 00:03:13]} Nxf5
{[%clk 00:16:23]} {[%emt 00:04:39]} 15. e6 {[%clk 00:23:50]} {[%emt 00:06:33]}
fxe6 {[%clk 00:16:40]} {[%emt 00:00:14]} 16. Bxh5+ {[%clk 00:23:03]} {[%emt
00:01:18]} Rxh5 {[%clk 00:17:07]} {[%emt 00:00:02]} 17. Qxh5+ {[%clk 00:23:24]}
{[%emt 00:00:08]} g6 {[%clk 00:15:21]} {[%emt 00:02:16]} 18. Qg4 {[%clk
00:19:20]} {[%emt 00:04:35]} b4 {[%clk 00:12:58]} {[%emt 00:02:54]} 19. Rfe1
{[%clk 00:15:42]} {[%emt 00:04:08]} Qf7 {[%clk 00:10:04]} {[%emt 00:03:23]} 20.
Rad1 {[%clk 00:12:51]} {[%emt 00:03:21]} Kd7 {[%clk 00:09:42]} {[%emt
00:00:52]} 21. Qf3 {[%clk 00:09:57]} {[%emt 00:03:23]} Be7 {[%clk 00:08:38]}
{[%emt 00:01:35]} 22. g4 {[%clk 00:08:37]} {[%emt 00:01:50]} Nd6 {[%clk
00:07:55]} {[%emt 00:01:14]} 23. Qxf7 {[%clk 00:08:40]} {[%emt 00:00:26]} Nxf7
{[%clk 00:08:22]} {[%emt 00:00:03]} 24. Bxe7 {[%clk 00:08:57]} {[%emt
00:00:13]} Kxe7 {[%clk 00:08:50]} {[%emt 00:00:03]} 25. Kg2 {[%clk 00:08:06]}
{[%emt 00:01:20]} Rh8 {[%clk 00:08:28]} {[%emt 00:00:52]} 26. Kg3 {[%clk
00:06:33]} {[%emt 00:02:03]} Kd6 {[%clk 00:08:14]} {[%emt 00:00:44]} 27. f4
{[%clk 00:04:03]} {[%emt 00:03:01]} Nd8 {[%clk 00:06:22]} {[%emt 00:02:22]} 28.
Rh1 {[%clk 00:03:17]} {[%emt 00:01:15]} c5 {[%clk 00:06:36]} {[%emt 00:00:16]}
29. dxc5+ {[%clk 00:03:24]} {[%emt 00:00:24]} Kxc5 {[%clk 00:07:05]} {[%emt
00:00:01]} 30. h5 {[%clk 00:03:26]} {[%emt 00:00:27]} gxh5 {[%clk 00:07:02]}
{[%emt 00:00:33]} 31. gxh5 {[%clk 00:03:28]} {[%emt 00:00:28]} Nf7 {[%clk
00:07:22]} {[%emt 00:00:10]} 32. Kf3 {[%clk 00:03:02]} {[%emt 00:00:56]} c3
{[%clk 00:07:07]} {[%emt 00:00:45]} 33. bxc3 {[%clk 00:03:00]} {[%emt
00:00:32]} bxc3 {[%clk 00:07:37]} 34. Ke3 {[%clk 00:02:21]} {[%emt 00:01:09]}
Nh6 {[%emt 00:00:06]} 35. Kd3 {[%clk 00:01:43]} {[%emt 00:01:07]} d4 {[%clk
00:07:03]} {[%emt 00:01:29]} 36. Rdg1 {[%clk 00:01:46]} {[%emt 00:00:27]} Kd5
{[%clk 00:05:46]} {[%emt 00:01:47]} 37. Rg5+ {[%clk 00:02:02]} {[%emt
00:00:13]} Nf5 {[%clk 00:04:55]} {[%emt 00:01:22]} 38. h6 {[%clk 00:01:43]}
{[%emt 00:00:48]} Rb8 {[%clk 00:03:38]} {[%emt 00:01:47]} 39. Rg2 {[%clk
00:01:50]} {[%emt 00:00:23]} Ne3 {[%clk 00:02:44]} {[%emt 00:01:25]} 40. Re2
{[%clk 00:01:00]} {[%emt 00:01:19]} c2 {[%clk 00:01:14]} {[%emt 00:02:00]} 41.
Rxe3 {[%clk 00:23:40]} {[%emt 00:07:50]} dxe3 {[%clk 00:31:42]} {[%emt
00:00:02]} 42. Rh5+ {[%emt 00:00:52]} Kd6 {[%clk 00:24:29]} {[%emt 00:07:32]}
43. Kxc2 {[%clk 00:23:20]} {[%emt 00:00:39]} Ke7 {[%clk 00:19:15]} {[%emt
00:05:44]} 44. h7 {[%clk 00:16:17]} {[%emt 00:07:33]} Rh8 {[%clk 00:19:34]}
{[%emt 00:00:12]} 45. Kd3 {[%clk 00:10:50]} {[%emt 00:05:56]} e2 {[%clk
00:18:01]} {[%emt 00:02:03]} 46. Kxe2 {[%clk 00:10:47]} {[%emt 00:00:34]} Kf6
{[%clk 00:18:11]} {[%emt 00:00:20]} 47. Rh6+ {[%clk 00:09:42]} {[%emt
00:01:34]} Kf5 {[%clk 00:11:30]} {[%emt 00:07:11]} 48. Kf3 {[%clk 00:07:22]}
{[%emt 00:02:51]} a5 {[%clk 00:06:43]} {[%emt 00:05:17]} 49. Kg3 {[%clk
00:06:47]} {[%emt 00:01:04]} e5 {[%clk 00:04:18]} {[%emt 00:02:55]} 50. fxe5
{[%clk 00:05:28]} {[%emt 00:01:49]} Kxe5 {[%clk 00:04:43]} {[%emt 00:00:06]} 51.
Kg4 {[%clk 00:05:31]} {[%emt 00:00:27]} Kd4 {[%clk 00:05:12]} 52. Kg5 {[%clk
00:05:45]} {[%emt 00:00:15]} Kc3 {[%clk 00:05:29]} {[%emt 00:00:12]} 53. Kg6
{[%clk 00:05:43]} {[%emt 00:00:34]} Kb3 {[%clk 00:05:56]} {[%emt 00:00:04]} 54.
Rh4 {[%clk 00:05:25]} {[%emt 00:00:47]} Rb8 {[%clk 00:05:50]} {[%emt 00:00:37]}
55. Kg7 {[%clk 00:04:48]} {[%emt 00:01:07]} Rb7+ {[%clk 00:06:14]} {[%emt
00:00:06]} 56. Kf6 {[%clk 00:05:08]} {[%emt 00:00:09]} Rb8 {[%clk 00:06:32]}
{[%emt 00:00:13]} 57. h8=Q {[%clk 00:05:02]} {[%emt 00:00:35]} Rxh8 {[%clk
00:06:57]} {[%emt 00:00:06]} 58. Rxh8 {[%clk 00:05:26]} {[%emt 00:00:05]} Kxa4
{[%clk 00:07:25]} {[%emt 00:00:02]} 59. Rb8 {[%clk 00:05:16]} {[%emt 00:00:39]}
Ka3 {[%clk 00:07:48]} {[%emt 00:00:08]} 60. Ke5 {[%clk 00:05:32]} {[%emt
00:00:14]} a4 {[%clk 00:08:13]} {[%emt 00:00:05]} 61. Kd4 {[%clk 00:05:44]}
{[%emt 00:00:18]} Ka2 {[%clk 00:08:06]} {[%emt 00:00:38]} 62. Kc3 {[%clk
00:05:58]} {[%emt 00:00:15]} a3 {[%clk 00:08:28]} {[%emt 00:00:08]} 63. Ra8
{[%clk 00:06:14]} {[%emt 00:00:14]} Kb1 {[%clk 00:08:48]} {[%emt 00:00:10]} 64.
Rxa3 {[%clk 00:06:36]} {[%emt 00:00:08]} Kc1 {[%clk 00:09:16]} {[%emt
00:00:02]} 65. Ra1# {[%clk 00:06:57]} {[%emt 00:00:09]} 1-0

[Event "Schack-SM 2022: Junior-SM"]
[Site "Fyrishov, Idrottsgatan 2, Uppsala, Sweden"]
[Date "2022.07.02"]
[Round "1.2"]
[White "Wernberg, Hugo"]
[Black "Rasti, Arvin"]
[Result "1/2-1/2"]
[TimeControl "90 minutes for 40 moves + 30 minutes for the rest of the game + 30 seconds per move from move one."]
[WhiteTitle "FM"]
[WhiteFideId "1737511"]
[BlackFideId "1741160"]
[WhiteElo "2316"]
[BlackElo "2136"]

1. d4 {[%clk 01:30:57]} {[%emt 00:00:02]} Nf6 {[%clk 01:30:35]} {[%emt
00:00:25]} 2. c4 {[%clk 01:31:18]} {[%emt 00:00:10]} e6 {[%clk 01:30:30]}
{[%emt 00:00:34]} 3. Nc3 {[%clk 01:31:38]} {[%emt 00:00:10]} Bb4 {[%clk
01:30:45]} {[%emt 00:00:15]} 4. e3 {[%clk 01:31:57]} {[%emt 00:00:11]} O-O
{[%clk 01:30:45]} {[%emt 00:00:29]} 5. Bd3 {[%clk 01:32:21]} {[%emt 00:00:08]}
d5 {[%clk 01:31:02]} {[%emt 00:00:12]} 6. Nf3 {[%clk 01:32:35]} {[%emt
00:00:17]} b6 {[%clk 01:31:18]} {[%emt 00:00:14]} 7. O-O {[%clk 01:30:41]}
{[%emt 00:02:24]} Ba6 {[%clk 01:30:56]} {[%emt 00:00:52]} 8. cxd5 {[%clk
01:22:36]} {[%emt 00:08:35]} exd5 {[%clk 01:31:15]} {[%emt 00:00:10]} 9. Bxa6
{[%clk 01:18:23]} {[%emt 00:04:44]} Nxa6 {[%clk 01:31:39]} {[%emt 00:00:05]} 10.
Qd3 {[%clk 01:15:19]} {[%emt 00:03:34]} Qc8 {[%clk 01:27:08]} {[%emt 00:05:01]}
11. a3 {[%clk 01:10:53]} {[%emt 00:04:57]} Be7 {[%clk 01:21:45]} {[%emt
00:05:52]} 12. e4 {[%clk 00:49:17]} {[%emt 00:22:06]} dxe4 {[%clk 01:10:12]}
{[%emt 00:12:03]} 13. Nxe4 {[%clk 00:49:36]} {[%emt 00:00:12]} Nxe4 {[%clk
01:10:08]} {[%emt 00:00:33]} 14. Qxe4 {[%clk 00:49:45]} {[%emt 00:00:21]} Re8
{[%clk 01:06:05]} {[%emt 00:04:32]} 15. Bf4 {[%clk 00:30:00]} {[%emt 00:20:16]}
Bd6 {[%clk 00:58:45]} {[%emt 00:07:49]} 16. Be5 {[%clk 00:27:52]} {[%emt
00:02:39]} f6 {[%clk 00:52:11]} {[%emt 00:07:04]} 17. Qd5+ {[%clk 00:24:29]}
{[%emt 00:03:53]} Qe6 {[%clk 00:52:00]} {[%emt 00:00:41]} 18. Qxe6+ {[%clk
00:24:38]} {[%emt 00:00:20]} Rxe6 {[%clk 00:52:25]} {[%emt 00:00:06]} 19. Bxd6
{[%clk 00:24:38]} {[%emt 00:00:31]} Rxd6 {[%clk 00:52:44]} {[%emt 00:00:10]} 20.
Rfc1 {[%clk 00:20:36]} {[%emt 00:04:32]} Re8 {[%clk 00:47:41]} {[%emt
00:05:33]} 21. b4 {[%clk 00:17:54]} {[%emt 00:03:12]} c6 {[%clk 00:45:24]}
{[%emt 00:02:47]} 22. g3 {[%clk 00:16:53]} {[%emt 00:01:31]} Kf7 {[%clk
00:38:46]} {[%emt 00:07:08]} 23. Rc4 {[%clk 00:13:24]} {[%emt 00:03:59]} Nc7
{[%clk 00:34:56]} {[%emt 00:04:19]} 24. a4 {[%clk 00:09:07]} {[%emt 00:04:48]}
b5 {[%clk 00:30:01]} {[%emt 00:05:25]} 1/2-1/2

[Event "Schack-SM 2022: Junior-SM"]
[Site "Fyrishov, Idrottsgatan 2, Uppsala, Sweden"]
[Date "2022.07.02"]
[Round "1.3"]
[White "Grahn, Vidar"]
[Black "Olsson, William"]
[Result "0-1"]
[TimeControl "90 minutes for 40 moves + 30 minutes for the rest of the game + 30 seconds per move from move one."]
[BlackTitle "FM"]
[WhiteFideId "1744780"]
[BlackFideId "1741721"]
[WhiteElo "2003"]
[BlackElo "2284"]

1. e4 {[%clk 01:30:55]} {[%emt 00:00:04]} c5 {[%clk 01:30:45]} {[%emt
00:00:17]} 2. Nf3 {[%clk 01:31:21]} {[%emt 00:00:03]} d6 {[%clk 01:31:11]}
{[%emt 00:00:04]} 3. d4 {[%clk 01:31:47]} {[%emt 00:00:04]} cxd4 {[%clk
01:31:38]} {[%emt 00:00:03]} 4. Nxd4 {[%clk 01:32:13]} {[%emt 00:00:04]} Nf6
{[%clk 01:32:03]} {[%emt 00:00:05]} 5. Nc3 {[%clk 01:32:40]} {[%emt 00:00:04]}
g6 {[%clk 01:32:27]} {[%emt 00:00:06]} 6. Be3 {[%clk 01:33:04]} {[%emt
00:00:05]} Bg7 {[%clk 01:32:54]} {[%emt 00:00:03]} 7. f3 {[%clk 01:33:27]}
{[%emt 00:00:07]} O-O {[%clk 01:33:20]} {[%emt 00:00:04]} 8. Qd2 {[%clk
01:33:53]} {[%emt 00:00:04]} Nc6 {[%clk 01:33:45]} {[%emt 00:00:05]} 9. Bc4
{[%clk 01:34:19]} {[%emt 00:00:04]} Bd7 {[%clk 01:34:12]} {[%emt 00:00:04]} 10.
O-O-O {[%clk 01:34:42]} {[%emt 00:00:06]} Rc8 {[%clk 01:34:38]} {[%emt
00:00:04]} 11. Bb3 {[%clk 01:35:08]} {[%emt 00:00:04]} Ne5 {[%clk 01:34:55]}
{[%emt 00:00:14]} 12. h4 {[%clk 01:35:30]} {[%emt 00:00:08]} h5 {[%clk
01:35:22]} {[%emt 00:00:02]} 13. Bg5 {[%clk 01:35:47]} {[%emt 00:00:13]} Rc5
{[%clk 01:35:45]} {[%emt 00:00:07]} 14. Kb1 {[%clk 01:35:53]} {[%emt 00:00:24]}
b5 {[%clk 01:36:07]} {[%emt 00:00:09]} 15. g4 {[%clk 01:35:48]} {[%emt
00:00:33]} hxg4 {[%clk 01:36:20]} {[%emt 00:00:18]} 16. h5 {[%clk 01:35:58]}
{[%emt 00:00:19]} Nxh5 {[%clk 01:36:44]} {[%emt 00:00:07]} 17. Nd5 {[%clk
01:36:18]} {[%emt 00:00:10]} Re8 {[%clk 01:37:08]} {[%emt 00:00:06]} 18. Rdg1
{[%clk 01:31:45]} {[%emt 00:05:03]} Rxd5 {[%clk 01:17:41]} {[%emt 00:19:57]} 19.
exd5 {[%clk 01:29:10]} {[%emt 00:03:05]} Qb6 {[%clk 01:14:32]} {[%emt
00:03:39]} 20. Be3 {[%clk 01:19:21]} {[%emt 00:10:19]} Qb7 {[%clk 01:08:49]}
{[%emt 00:06:14]} 21. Bh6 {[%clk 01:16:27]} {[%emt 00:03:23]} Bf6 {[%clk
01:07:20]} {[%emt 00:02:00]} 22. fxg4 {[%clk 01:07:59]} {[%emt 00:08:58]} Bxg4
{[%clk 00:59:16]} {[%emt 00:08:34]} 23. Nc6 {[%clk 01:00:25]} {[%emt 00:08:04]}
Bf3 {[%clk 00:45:39]} {[%emt 00:14:07]} 24. Rh3 {[%clk 01:00:08]} {[%emt
00:00:46]} Qc8 {[%clk 00:44:52]} {[%emt 00:01:18]} 25. Qh2 {[%clk 00:54:25]}
{[%emt 00:06:12]} Qf5 {[%clk 00:34:38]} {[%emt 00:10:44]} 26. Bc1 {[%clk
00:45:03]} {[%emt 00:09:52]} Bg4 {[%clk 00:32:28]} {[%emt 00:02:40]} 27. Nd4
{[%clk 00:43:04]} {[%emt 00:02:28]} Qe4 {[%clk 00:31:43]} {[%emt 00:01:14]} 28.
Rxh5 {[%clk 00:42:32]} {[%emt 00:01:04]} Bxh5 {[%clk 00:29:22]} {[%emt
00:02:50]} 29. Qxh5 {[%clk 00:42:25]} {[%emt 00:00:38]} Qxd4 {[%clk 00:29:45]}
{[%emt 00:00:07]} 30. Rg2 {[%clk 00:40:46]} {[%emt 00:02:09]} Qe4 {[%clk
00:28:48]} {[%emt 00:01:26]} 31. Qh3 {[%clk 00:40:09]} {[%emt 00:01:07]} Qh4
{[%clk 00:24:00]} {[%emt 00:05:18]} 32. Qe3 {[%clk 00:39:07]} {[%emt 00:01:32]}
a5 {[%clk 00:22:55]} {[%emt 00:01:35]} 33. c3 {[%clk 00:37:54]} {[%emt
00:01:44]} b4 {[%clk 00:22:09]} {[%emt 00:01:17]} 34. cxb4 {[%clk 00:36:12]}
{[%emt 00:02:11]} axb4 {[%clk 00:22:20]} {[%emt 00:00:19]} 35. Bc2 {[%clk
00:34:55]} {[%emt 00:01:47]} Kg7 {[%clk 00:21:27]} {[%emt 00:01:22]} 36. b3
{[%clk 00:32:07]} {[%emt 00:03:19]} Rc8 {[%clk 00:19:16]} {[%emt 00:02:41]} 37.
Bd2 {[%clk 00:30:20]} {[%emt 00:02:16]} Rh8 {[%clk 00:14:43]} {[%emt 00:05:04]}
38. Be4 {[%clk 00:26:49]} {[%emt 00:04:00]} Qh5 {[%clk 00:13:51]} {[%emt
00:01:22]} 39. Rg1 {[%clk 00:25:43]} {[%emt 00:01:36]} Nd7 {[%clk 00:11:43]}
{[%emt 00:02:39]} 40. Bg2 {[%clk 00:21:09]} {[%emt 00:05:04]} Qf5+ {[%clk
00:09:42]} {[%emt 00:02:31]} 41. Qe4 {[%clk 00:20:39]} {[%emt 00:00:59]} Qxe4+
{[%clk 00:06:37]} {[%emt 00:03:34]} 42. Bxe4 {[%clk 00:20:46]} {[%emt
00:00:25]} Rh4 {[%clk 00:06:44]} {[%emt 00:00:22]} 43. Bc2 {[%clk 00:18:49]}
{[%emt 00:02:28]} Nc5 {[%clk 00:02:15]} {[%emt 00:04:59]} 44. Rf1 {[%clk
00:16:16]} {[%emt 00:03:02]} Rd4 {[%clk 00:01:20]} {[%emt 00:01:26]} 45. Kc1
{[%clk 00:15:45]} {[%emt 00:01:01]} Na6 {[%clk 00:00:51]} {[%emt 00:00:59]} 46.
Rd1 {[%clk 00:15:32]} {[%emt 00:00:42]} Nc7 {[%clk 00:29:37]} {[%emt 00:01:44]}
47. Be1 {[%clk 00:45:13]} {[%emt 00:00:50]} Nxd5 {[%clk 00:28:17]} {[%emt
00:01:50]} 48. Rxd4 {[%clk 00:45:24]} {[%emt 00:00:19]} Bxd4 {[%clk 00:28:37]}
{[%emt 00:00:10]} 49. Be4 {[%clk 00:45:49]} {[%emt 00:00:03]} Nc3 {[%clk
00:27:09]} {[%emt 00:02:00]} 50. Bxc3 {[%clk 00:46:12]} {[%emt 00:00:07]} Bxc3
{[%clk 00:27:37]} {[%emt 00:00:02]} 51. Kc2 {[%clk 00:46:35]} {[%emt 00:00:07]}
f5 {[%clk 00:28:01]} {[%emt 00:00:07]} 52. Bg2 {[%clk 00:46:59]} {[%emt
00:00:06]} Bd4 {[%clk 00:28:24]} {[%emt 00:00:07]} 53. Kd3 {[%clk 00:47:12]}
{[%emt 00:00:16]} Bc5 {[%clk 00:28:46]} {[%emt 00:00:08]} 0-1